Cogmind - Beta 16 @@@ ROGUE MODE // 2026.01.01 @ 00:46:47 Player: AngelSpirit Result: Destroyed by PS-HD5(R) with Subdweller Machine Gun Performance ------------- Evolutions (0) 0 Regions Visited (2) 400 Robots Destroyed (28) 140 Value Destroyed (825) 825 Prototype IDs (0) 0 Alien Tech Used (0) 0 Bonus (0) 0 TOTAL SCORE: 1365 Bonus ------- None Cogmind --------- Core Integrity 0/250 Matter 225/300 Energy 123/125 System Corruption 0% Temperature Cool (0) Movement Rolling (130) Ox2 Location -10/Subcaves Parts ------- > --- POWER (1) -------- Light Ion Engine > --- PROPULSION (2) --- Spiked Treads Subdweller Monowheel > --- UTILITY (2) ------ High-capacity Storage Unit Medium Armor Plating > --- WEAPON (2) ------- Subdweller Machine Gun Subdweller Machine Gun > --- INVENTORY (20) --- Light Ion Engine Wheel Wheel Compact Wheel Cooling System Sensor Array Seismic Detector Medium Armor Plating Scrap Shield Hacking Suite Makeshift Hacking Suite Subdweller Laser Subdweller Laser Barrage Gun Heavy Battle Rifle Subdweller Shrapnel Launcher Peak State ------------ > --- POWER ------------ Subdweller Power Source > --- PROPULSION ------- Spiked Treads Subdweller Monowheel > --- UTILITY ---------- High-capacity Storage Unit Medium Armor Plating > --- WEAPON ----------- Battle Rifle Barrage Gun > --- INVENTORY -------- Light Ion Engine Light Ion Engine Wheel Wheel Compact Wheel Subdweller Monowheel Cooling System Sensor Array Seismic Detector Medium Armor Plating Medium Armor Plating Scrap Shield Hacking Suite Assault Rifle Assault Rifle [Rating: 16] Favorites ----------- Power Subdweller Power Source Engine Subdweller Power Source Propulsion Wheel Treads Spiked Treads Wheel Wheel Utility High-capacity Storage Unit Device Sensor Array Storage High-capacity Storage Unit Protection Medium Armor Plating Weapon Assault Rifle Energy Gun Small Laser Ballistic Gun Assault Rifle Ballistic Cannon Battle Cannon Special Weapon Mining Laser Build | -11 -10 -10 ------- Run | Yrd Mat Sub Slots Evolved . | . . . Power . | . . . Propulsion . | . . . Utility . | . . . Weapon . | . . . Parts Attached 36 | 6 10 20 Power 5 | 1 1 3 Engine 5 | 1 1 3 Core . | . . . Reactor . | . . . Propulsion 10 | 2 2 6 Treads 3 | . . 3 Leg . | . . . Wheel 7 | 2 2 3 Hover . | . . . Flight . | . . . Utility 7 | 1 3 3 Device 1 | . . 1 Storage 2 | 1 1 . Processor . | . . . Hackware . | . . . Protection 4 | . 2 2 Artifact . | . . . Weapon 14 | 2 4 8 Energy Gun 1 | 1 . . Energy Cannon . | . . . Ballistic Gun 11 | 1 3 7 Ballistic Cannon 1 | . . 1 Launcher . | . . . Special Weapon 1 | . 1 . Impact Weapon . | . . . Slashing Weapon . | . . . Piercing Weapon . | . . . Special Melee Weapon . | . . . Unidentified Prototypes . | . . . Parts Lost 6 | . . 6 Power . | . . . Propulsion 1 | . . 1 Utility 2 | . . 2 Weapon 3 | . . 3 Highest Loss Streak 2 | . . 2 To Critical Strikes 1 | . . 1 Average Backups 12 | . 8 15 Power 1 | . . 1 Propulsion 2 | . 1 3 Utility 6 | . 4 7 Weapon 2 | . 1 2 Tool/Special . | . . . Unused Backups 13 | . 1 12 Power 1 | . . 1 Propulsion 1 | . . 1 Utility 6 | . . 6 Weapon 5 | . 1 4 Tool/Special . | . . . Average Slot Usage (%) 97 | . 98 96 Engine 12 | . 14 10 Treads 6 | . . 11 Wheel 20 | . 28 16 Device 3 | . . 6 Storage 14 | . 14 14 Protection 9 | . 12 7 Ballistic Gun 26 | . 27 25 Ballistic Cannon 1 | . . 2 Peak Build Rating 16 | 6 9 16 Average Rating 11 | 4 8 13 On Entrance 5 | . 6 9 Avg Prop Armor Cover (%) 12 | . . 12 Naked Turns . | . . . Heaviest Build 58 | 12 56 58 Greatest Support 26 | 20 26 26 Greatest Overweight (x) 5 | . 2 5 Average Overweight (x) 1 | . 1 2 Largest Inventory Capacity 20 | 8 20 20 Average Capacity 17 | 7 14 20 Most Carried 20 | 1 12 20 Average Carried 12 | . 8 15 Final Capacity 20 | 8 20 20 Final Carried 17 | 1 12 17 Class Distribution -------------------- 76% | Mutant 23% | Derelict-Mutant Dominant Class ---------------- Mutant | -10/Materials Mutant | -10/Subcaves Resources | -11 -10 -10 ----------- Run | Yrd Mat Sub Matter Collected 1345 | 170 446 729 Remotely . | . . . Salvage Created 912 | . 539 373 Parts 59 | . 35 24 Haulers Intercepted 2 | . 2 . Recyclers Shooed . | . . . Parts Field Recycled . | . . . Retrieved Matter . | . . . Parts Self-Destructed 5 | . . 5 Prevented . | . . . Parts Restored . | . . . Kills | -11 -10 -10 ------- Run | Yrd Mat Sub Combat Hostiles Destroyed 21 | . 11 10 Guns 19 | . 11 8 Cannons 2 | . . 2 Classes Destroyed 8 | . 7 1 Worker 1 | . 1 . Hauler 2 | . 2 . Mechanic 1 | . 1 . Operator 1 | . 1 . Watcher 2 | . 2 . Swarmer 3 | . 3 . Grunt 10 | . 8 2 Subdweller 8 | . . 8 Best Kill Streak 4 | . 4 2 Combat Bots Only 3 | . 3 2 Max Kills in Single Turn 1 | . 1 1 Gunslinging . | . . . Exploded . | . . . Melee . | . . . Uniques/NPCs Destroyed . | . . . Combat | -11 -10 -10 -------- Run | Yrd Mat Sub Hostile Shots Fired 129 | . 52 77 Missed 35 | . 15 20 Hits 94 | . 37 57 Projectile 94 | . 37 57 Critical Strikes 6 | . 2 4 Damage Taken 1694 | . 427 1267 Core 251 | . 78 173 Absorbed by Shields . | . . . Core Remaining (%) 100 | 100 . . Volleys Fired 126 | . 56 70 Largest 2 | . 2 2 Hottest 100 | . 100 60 Shots Fired 246 | . 111 135 Gun 217 | . 110 107 Cannon 28 | . . 28 Launcher . | . . . Special 1 | . 1 . Kinetic 245 | . 110 135 Thermal 1 | . 1 . Explosive . | . . . Electromagnetic . | . . . Robot Hit Streak 27 | . 17 27 Robot Miss Streak 5 | . 5 2 Penetration Max . | . . . Secondary Targets 3 | . 2 1 Max Gunslinging Chain 1 | . 1 1 Shots Hit Robots 155 | . 75 80 Core Hits 53 | . 32 21 Critical Kills . | . . . Critical Parts Destroyed 2 | . 2 . Critical Strikes 3 | . 2 1 Destroy 2 | . 2 . Blast 1 | . . 1 Melee Attacks . | . . . Impact . | . . . Slashing . | . . . Piercing . | . . . Sneak Attacks . | . . . Combat Hostiles . | . . . Follow-up Attacks . | . . . Damage Inflicted 2184 | . 956 1228 Guns 1841 | . 956 885 Cannons 343 | . . 343 Explosions . | . . . Melee . | . . . Ramming . | . . . Kinetic 2184 | . 956 1228 Thermal . | . . . Explosive . | . . . Electromagnetic . | . . . Impact . | . . . Slashing . | . . . Piercing . | . . . Highest Corruption . | . . . Average Corruption . | . . . Corruption Purged . | . . . Corruption Blocked . | . . . Overload Shots . | . . . Overflow Damage . | . . . Projectiles . | . . . Explosions . | . . . Melee . | . . . Knockbacks 6 | . . 6 Impact . | . . . Kinetic 6 | . . 6 Secondary . | . . . Self-Inflicted Damage . | . . . Shots . | . . . Rammed . | . . . Targets Rammed . | . . . Kicked . | . . . Crushed . | . . . Highest Temperature 32 | . 32 . Average Temperature 6 | . 6 . Received Heat Transfer 384 | . 198 186 Siege Activations . | . . . Martial Activations . | . . . Shielding Activations . | . . . Robots Disrupted . | . . . Combat Hostiles . | . . . Robots Corrupted . | . . . Combat Hostiles . | . . . Parts Fried . | . . . Impact Corruptions . | . . . Robots Melted . | . . . Combat Hostiles . | . . . Parts Melted 1 | . . 1 Heat Transferred . | . . . Parts Sabotaged . | . . . Parts Stolen . | . . . Parts Stripped . | . . . Power Chain Reactions . | . . . Alert | -11 -10 -10 ------- Run | Yrd Mat Sub Maximum Alert Level . | . . . Low Security (%) 100 | 100 100 . Level 1 . | . . . Level 2 . | . . . Level 3 . | . . . Level 4 . | . . . Level 5 . | . . . High Security . | . . . Max Security . | . . . Peak Influence 125 | . 125 . Initial . | . . . Average 59 | . 62 . Influence Increases 457 | . 407 50 Destroy 0b10 Robot/C 260 | . 220 40 Destroy 0b10 Robot/NC 35 | . 35 . Destroy Leader 68 | . 58 10 Successful Hack 18 | . 18 . Disable Machine 45 | . 45 . Destroy Structure 1 | . 1 . Lose Combat Pursuer 30 | . 30 . Influence Decreases 457 | . 362 95 Entered New Map 22 | . . 22 Time Decay 435 | . 362 73 Squads Dispatched 3 | . 3 . Investigation 3 | . 3 . Extermination . | . . . Reinforcement . | . . . Assault . | . . . Garrison . | . . . Intercept . | . . . Searches Triggered . | . . . Construction Impeded . | . . . Haulers Reinforced . | . . . Active Scanning Responses . | . . . Cargo Convoy Interrupts . | . . . Stealth | -11 -10 -10 --------- Run | Yrd Mat Sub Distress Signals 1 | . 1 . Communications Jammed . | . . . Distress Signals . | . . . Times Spotted 34 | . 23 11 Peak Tracking Total 3 | . 3 2 Tactical Retreats 1 | . 1 . Traps | -11 -10 -10 ------- Run | Yrd Mat Sub Traps Triggered 4 | . 2 2 Indirectly . | . . . Trap Hack Attempts . | . . . Triggered . | . . . Disarmed . | . . . Reprogrammed . | . . . Reused . | . . . Traps Extracted . | . . . Installed . | . . . Triggered . | . . . Machines | -11 -10 -10 ---------- Run | Yrd Mat Sub Machines Disabled 3 | . 3 . Max in Single Turn 1 | . 1 . Machines Repaired . | . . . Machines Dismantled . | . . . Machines Sabotaged . | . . . Overloaded Fab Kills . | . . . Hacking | -11 -10 -10 --------- Run | Yrd Mat Sub Machines Accessed 8 | . 8 . Terminals 6 | . 6 . Fabricators . | . . . Repair Stations 1 | . 1 . Recycling Units 1 | . 1 . Scanalyzers . | . . . Garrison Access . | . . . Total Hacks 27 | . 27 . Successful 12 | . 12 . Failed 15 | . 15 . Catastrophic 5 | . 5 . Database Lockouts . | . . . Manual 9 | . 9 . Terminals 22 | . 22 . Fabricators . | . . . Repair Stations 3 | . 3 . Recycling Units 2 | . 2 . Scanalyzers . | . . . Garrison Access . | . . . Terminal Hacks 8 | . 8 . Robot Analysis 2 | . 2 . Emergency Access Points 1 | . 1 . Locate Traps 1 | . 1 . Recall Investigation 1 | . 1 . Hauler Manifests 1 | . 1 . Registered Components 1 | . 1 . Zone Layout 1 | . 1 . Fabricator Hacks . | . . . Repair Station Hacks 1 | . 1 . Refit 1 | . 1 . Recycling Unit Hacks . | . . . Scanalyzer . | . . . Garrison Access Hacks . | . . . Unauthorized Hacks 3 | . 3 . Terminals 3 | . 3 . Botnet 2 | . 2 . Operators 1 | . 1 . Fabricators . | . . . Repair Stations . | . . . Recycling Units . | . . . Scanalyzers . | . . . Garrison Access . | . . . Data Cores Recovered 1 | . 1 . Used . | . . . Hacking Detections 7 | . 7 . Full Trace Events 3 | . 3 . Feedback Events . | . . . Feedback Blocked . | . . . Robot Schematics Acquired . | . . . Robots Built . | . . . Authchips . | . . . Time . | . . . Total Robot Build Rating . | . . . Part Schematics Acquired . | . . . Parts Built . | . . . Authchips . | . . . Time . | . . . Total Part Build Rating . | . . . Part Studies Acquired . | . . . Parts Repaired . | . . . Time . | . . . Parts Recycled . | . . . Recycled Matter . | . . . Retrieved Matter . | . . . Retrieved Components . | . . . Parts Scanalyzed . | . . . Part Schematics Acquired . | . . . Parts Damaged . | . . . Bothacking | -11 -10 -10 ------------ Run | Yrd Mat Sub Used RIF Installer . | . . . Robots Hacked . | . . . Non-combat . | . . . Combat . | . . . Robot Hacks Applied . | . . . Relay Couplers Released . | . . . Fabnet Peak Effective % . | . . . Robots Rewired . | . . . Allies Hacked . | . . . Hacks Repelled . | . . . Allies | -11 -10 -10 -------- Run | Yrd Mat Sub Total Allies . | . . . Largest Group . | . . . Highest-Rated Group . | . . . Highest-Rated Ally . | . . . Total Orders . | . . . Ally Attacks . | . . . Total Damage . | . . . Kills . | . . . Allies Corrupted . | . . . Allies Melted . | . . . Intel | -11 -10 -10 ------- Run | Yrd Mat Sub Active Infowar (turns) 625 | . . 625 Sensors 625 | . . 625 Robot Analysis Total 2 | . 2 . Derelict Logs Recovered 2 | . . 2 Drone Launches . | . . . Drone Recoveries . | . . . Exploration | -11 -10 -10 ------------- Run | Yrd Mat Sub Turns Passed 2294 | 44 869 1381 Spaces Moved 1475 | 44 588 843 Core 3 | 3 . . Treads . | . . . Legs . | . . . Wheels 1472 | 41 588 843 Hover . | . . . Flight . | . . . Fastest Speed 50 | 50 80 105 Average Speed 116 | 77 101 128 Slowest Speed 155 | 80 120 155 Overloaded Moves . | . . . Propulsion Burnouts . | . . . Robots Hopped . | . . . Potential Cave-ins . | . . . Cave-ins Triggered . | . . . Exploration Rate (%) 39 | 4 71 42 Regions Visited 2 Branch Regions 1 Pre-discovered Areas 1 | . . 1 Known Exits Taken . | . . . Unknown Exits Taken 2 | 1 1 . Scrap Searched 17 | . . 17 Spaces Dug . | . . . Terrain Destroyed . | . . . Melee . | . . . Projectile . | . . . AOE . | . . . Terrain Rammed . | . . . Walls Destroyed . | . . . Machines Disabled . | . . . Actions | -11 -10 -10 --------- Run | Yrd Mat Sub Total 1811 | 50 754 1007 Wait 112 | . 72 40 Move 1473 | 43 587 843 Hop . | . . . Pick Up 27 | 1 15 11 Fast Attach 12 | 6 2 4 Attach 12 | . 3 9 Detach 2 | . 1 1 Swap 24 | . 7 17 Drop 23 | . 11 12 Fire 126 | . 56 70 Melee . | . . . Ram . | . . . Kick . | . . . Crush . | . . . Escape Stasis . | . . . Rewire . | . . . Trap . | . . . Miscellaneous . | . . . Route ------- -11/Scrapyard -10/Materials (discovered 3 exits: [*Mat] / [*Min] / [*Sub]) -10/Subcaves History --------- Turn | Location | Event 15 | -11/Scrapyard | Discovered new exit (range 16) 45 | -11/Scrapyard | Entered Materials 148 | -10/Materials | Discovered new exit (range 13) 308 | -10/Materials | Build established: Mutant 632 | -10/Materials | Discovered new exit (range 16) 902 | -10/Materials | Discovered new exit (range 11) 914 | -10/Materials | Entered Subcaves 919 | -10/Subcaves | Learned Materials trap positions 1017 | -10/Subcaves | Disturbed a concealed Subdweller 1101 | -10/Subcaves | Shifting Twisted Machinery released Spk. Treads 1112 | -10/Subcaves | Shifting Twisted Machinery released Scrap Shield 1186 | -10/Subcaves | Core integrity fell below 50% 1613 | -10/Subcaves | Build established: Derelict-Mutant 1872 | -10/Subcaves | Learned location of Storage (-8) 1981 | -10/Subcaves | Disturbed a concealed Subdweller 1994 | -10/Subcaves | Core integrity fell below 20% 2006 | -10/Subcaves | Disturbed a concealed Subdweller 2133 | -10/Subcaves | Build established: Mutant 2295 | -10/Subcaves | Destroyed by PS-HD5(R) with Subdweller Machine Gun Last Messages --------------- 02012_ Searching scrap... 02012_ Found Sub. Monowheel. 02012_ Found 52 Matter. 02013_ Searching scrap... 02013_ Found Battle Rifle. 02013_ Found Barrage Gun. 02013_ Found 38 Matter. 02016_ Searching scrap... 02016_ Found Sub. Laser. 02016_ Found Mak. Hammer. 02016_ Found 44 Matter. 02019_ Acquired Sub. Laser. 02111_ Sub. Monowheel shoots sparks and powers down. 02112_ Dropped Broken Sub. Monowheel. 02143_ RI-BDR(R): "SUBHATE!" 02284_ Critical hit (Destroy). 02287_ Med. Armor Plating destroyed. 02292_ BF-WXL(R) destroyed. 02292_ Switching to secondary target: PS-HD5(R). Map ----- +----------------------------------------------------+ | ???????????????????????????????????????????????## | | ????????????????????????????????????????????????## | | ?????????????????????????????????????????????????# | | ?????????????????????????????????????????????????? | | ?????????????????????????????????????????????????? | | ?????????????????????????????????????????????????? | | ?????????????????????????????????????????????????? | | ?????????????????????########??####??????????????? | | ????????????????????## ""=" #?##%"##?????????????? | | ????????????????????#% [& " ###"/[ #?????????????? | | ????????????????????#"=&"& # #?????????????? | | ????????????????????#"" #[ # # ""##?????????????# | | ????????????????????##" ![%#?# ####?###?????????## | | ?????????????????????###[ #### "### ##????###?# | | ????????????????????## ["## ###### ### | | ????????????????????#" | ##### %## ## | | ????????????????????#" # |## ## | | ??????????????????####" ##""## | | ????????????????### ##"" ## ##### | | ????????????????# ######< *<###?# ## #### | | ?????????????????# ### < ### ############ | | ?????????????# ### # ### | | ?????????????# ### # # ##### | | ?????????????# R ##%""## | | ?????????????# [%& #" /%"# | | ???????????# # #@ ### #"%["## | | ?????????? # #### ## ##%=## | | ????????? ## ## ??# ## ##[%&&# | | ????????? ## ??## ?# ??##### ## ###&==][[&# | | ????????????????#??## ??????# ### %!%##### | | ???????????????????? ??????# ##?# [![###? | | ??????????????????? ????? #??# # ## ## | | ???????????????????# ???? ??####### # | | ???????????????????## ??? ##???????### # | | ????????????????????####?? # # ??????????## ## | | ?????????????????????????#########???????????####? | | ?????????????????????????????????????????????????? | | ?????????????????????????????????????????????????? | | ?????????????????????????????????????????????????? | | ?????????????????????????????????????????????????? | | ?????????????????????????????????????????????????? | | ?????????????????????????????????????????????????? | | ?????????????????????????????????????????????????? | | ?????????????????????????????????????????????????? | | ?????????????????????????????????????????????????? | | ?????????????????????????????????????????????????? | | ?????????????????????????????????????????????????? | | ?????????????????????????????????????????????????? | | ?????????????????????????????????????????????????? | | ?????????????????????????????????????????????????? | +----------------------------------------------------+ Best States ------------- Heat Dissipation 25 Energy Generation 15 Energy Capacity 250 Matter Stores 300 Matter Capacity 300 Sight Range 16 Robot Scan Range 14 Terrain Scan Density 10 Armor Coverage 225 Evasion (%) 44 Recoil Reduction 1 Item Schematics ----------------- None Robot Schematics ------------------ None Fabricated ------------ Nothing Repaired ---------- Nothing Studied --------- None Alien Tech Used ----------------- None Achievements -------------- None Challenges ------------ None Game ------ Seed FocalEnergyStick Manual? 0 Play Time 00:16:06 Cumulative 358.8 hours Start 2026.01.01 @ 00:31:53 End 2026.01.01 @ 00:46:47 Sessions 1 Manual Loads 0 Difficulty Rogue Special Mode None Game No. 128 Rogue 128 Adventurer 0 Explorer 0 Win Type - Total 7 Types 5/0/0/0/0/0/0/1/0/1 Lore% 79 Gallery% 76 Achievement% 65 Wizard Run 0 Options --------- Layout 1 ASCII 0 Keyboard 0 Movement Mouse Keybinds 0 Fullscreen 2 Font 32/SmallcapsGlow Map View 50x35 Zoom Use 0% Tactical HUD 1 Map Filters NONE Filters NONE Steam 1 RUN: 79bd77b1-d803-4d02-93e5-67decad7a5b5